[Event "NJSK 2018 Meisjes C"]
[Site "Assen, Netherlands"]
[Date "2018.04.29"]
[Round "1.7"]
[White "Jonkman Inza, Amelia Marry"]
[Black "Martinez, Sara"]
[Result "0-1"]
[TimeControl "40/90m+30m+30sec/move"]
[WhiteElo "1222"]
[BlackElo "1446"]

1. d4 {[%clk 01:30:59]} {[%emt 00:00:02]} d5 {[%clk 01:30:54]} {[%emt
00:00:07]} 2. c4 {[%clk 01:31:17]} {[%emt 00:00:12]} e6 {[%clk 01:31:20]}
{[%emt 00:00:03]} 3. Nc3 {[%clk 01:31:31]} {[%emt 00:00:19]} Nf6 {[%clk
01:31:42]} {[%emt 00:00:04]} 4. Nf3 {[%clk 01:31:29]} {[%emt 00:00:31]} Be7
{[%clk 01:32:00]} {[%emt 00:00:12]} 5. Bf4 {[%clk 01:29:53]} {[%emt 00:02:01]}
a6 {[%clk 01:31:00]} {[%emt 00:01:36]} 6. e3 {[%clk 01:28:04]} {[%emt
00:02:19]} O-O {[%clk 01:31:16]} {[%emt 00:00:14]} 7. Bd3 {[%clk 01:27:34]}
{[%emt 00:01:00]} b6 {[%clk 01:31:20]} {[%emt 00:00:26]} 8. O-O {[%clk
01:26:16]} {[%emt 00:01:48]} Bb7 {[%clk 01:29:57]} {[%emt 00:01:52]} 9. Ne5
{[%clk 01:22:22]} {[%emt 00:04:25]} Nbd7 {[%clk 01:28:20]} {[%emt 00:02:05]} 10.
Rc1 {[%clk 01:20:46]} {[%emt 00:02:07]} c5 {[%clk 01:26:21]} {[%emt 00:02:30]}
11. b3 {[%clk 01:19:08]} {[%emt 00:02:07]} Nxe5 {[%clk 01:16:24]} {[%emt
00:10:27]} 12. Bxe5 {[%clk 01:19:12]} {[%emt 00:00:26]} Bd6 {[%clk 01:14:51]}
{[%emt 00:02:03]} 13. f4 {[%clk 01:14:11]} {[%emt 00:05:32]} Ne4 {[%clk
01:08:16]} {[%emt 00:07:04]} 14. Qg4 {[%clk 01:06:50]} {[%emt 00:07:51]} Bxe5
{[%clk 01:07:31]} {[%emt 00:01:16]} 15. fxe5 {[%clk 01:05:23]} {[%emt
00:01:57]} f5 {[%clk 01:06:34]} {[%emt 00:01:26]} 16. exf6 {[%clk 01:04:14]}
{[%emt 00:01:38]} Rxf6 {[%clk 00:54:59]} {[%emt 00:12:06]} 17. Nxe4 {[%clk
01:02:00]} {[%emt 00:02:44]} dxe4 {[%clk 00:50:52]} {[%emt 00:04:38]} 18. Bxe4
{[%clk 00:59:00]} {[%emt 00:03:30]} Bxe4 {[%clk 00:49:25]} {[%emt 00:01:57]} 19.
Qxe4 {[%clk 00:55:53]} {[%emt 00:03:36]} Ra7 {[%clk 00:49:17]} {[%emt
00:00:37]} 20. Qe5 {[%clk 00:50:30]} {[%emt 00:05:55]} Raf7 {[%clk 00:44:39]}
{[%emt 00:05:05]} 21. Rxf6 {[%clk 00:46:21]} {[%emt 00:04:41]} Qxf6 {[%clk
00:42:42]} {[%emt 00:02:27]} 22. Qb8+ {[%clk 00:42:37]} {[%emt 00:04:15]} Rf8
{[%clk 00:43:04]} {[%emt 00:00:08]} 23. Qxb6 {[%clk 00:41:41]} {[%emt
00:01:26]} Qf2+ {[%clk 00:43:26]} {[%emt 00:00:08]} 24. Kh1 {[%clk 00:39:52]}
{[%emt 00:02:18]} Qf1 {[%clk 00:43:51]} {[%emt 00:00:05]} 25. Rxf1 {[%clk
00:40:00]} {[%emt 00:00:23]} Rxf1 {[%clk 00:44:16]} {[%emt 00:00:04]} 0-1

[Event "NJSK 2018 Meisjes C"]
[Site "Assen, Netherlands"]
[Date "2018.04.29"]
[Round "1.8"]
[White "Morote, Luna"]
[Black "Bogouslavskii, Veronique"]
[Result "1/2-1/2"]
[TimeControl "40/90m+30m+30sec/move"]
[WhiteElo "1415"]
[BlackElo "1004"]

1. e4 {[%clk 01:30:58]} {[%emt 00:00:01]} e5 {[%clk 01:30:53]} {[%emt
00:00:08]} 2. Nf3 {[%clk 01:31:24]} {[%emt 00:00:05]} Nc6 {[%clk 01:31:14]}
{[%emt 00:00:09]} 3. Bb5 {[%clk 01:31:49]} {[%emt 00:00:05]} a6 {[%clk
01:31:32]} {[%emt 00:00:13]} 4. Ba4 {[%clk 01:32:14]} {[%emt 00:00:02]} b5
{[%clk 01:31:23]} {[%emt 00:00:38]} 5. Bb3 {[%clk 01:32:37]} {[%emt 00:00:08]}
Nf6 {[%clk 01:31:33]} {[%emt 00:00:20]} 6. d3 {[%clk 01:32:36]} {[%emt
00:00:30]} Be7 {[%clk 01:31:14]} {[%emt 00:00:49]} 7. c3 {[%clk 01:32:02]}
{[%emt 00:01:04]} Bb7 {[%clk 01:29:53]} {[%emt 00:01:51]} 8. Nbd2 {[%clk
01:32:01]} {[%emt 00:00:31]} O-O {[%clk 01:28:28]} {[%emt 00:01:55]} 9. O-O
{[%clk 01:32:04]} {[%emt 00:00:26]} d6 {[%clk 01:19:12]} {[%emt 00:09:47]} 10.
Re1 {[%clk 01:29:31]} {[%emt 00:03:03]} Qd7 {[%clk 01:13:17]} {[%emt 00:06:26]}
11. h3 {[%clk 01:28:17]} {[%emt 00:01:42]} Nh5 {[%clk 01:05:05]} {[%emt
00:08:42]} 12. Nf1 {[%clk 01:26:05]} {[%emt 00:02:42]} Nf6 {[%clk 01:00:25]}
{[%emt 00:05:11]} 13. Ng3 {[%clk 01:24:38]} {[%emt 00:01:57]} Nd8 {[%clk
00:59:06]} {[%emt 00:01:49]} 14. Nf5 {[%clk 01:22:01]} {[%emt 00:03:07]} Ne6
{[%clk 00:58:49]} {[%emt 00:00:48]} 15. Be3 {[%clk 01:15:48]} {[%emt 00:06:40]}
a5 {[%clk 00:50:15]} {[%emt 00:09:06]} 16. Qd2 {[%emt 00:16:20]} c5 {[%clk
00:45:38]} {[%emt 00:00:21]} 17. Rad1 {[%clk 00:50:30]} {[%emt 00:14:43]} a4
{[%clk 00:44:04]} {[%emt 00:02:05]} 18. Bc2 {[%clk 00:49:54]} {[%emt 00:01:05]}
Qc7 {[%clk 00:41:16]} {[%emt 00:03:19]} 19. Nxe7+ {[%clk 00:48:57]} {[%emt
00:01:27]} Qxe7 {[%clk 00:41:21]} {[%emt 00:00:26]} 20. Qe2 {[%clk 00:43:56]}
{[%emt 00:05:28]} Rfd8 {[%clk 00:38:42]} {[%emt 00:03:10]} 21. Bc1 {[%clk
00:43:01]} {[%emt 00:01:26]} Nh5 {[%clk 00:32:45]} {[%emt 00:06:27]} 22. g3
{[%clk 00:40:08]} {[%emt 00:03:21]} Nf6 {[%clk 00:31:27]} {[%emt 00:01:50]} 23.
d4 {[%clk 00:39:21]} {[%emt 00:01:17]} exd4 {[%clk 00:27:27]} {[%emt 00:04:30]}
24. cxd4 {[%clk 00:39:09]} {[%emt 00:00:42]} cxd4 {[%clk 00:26:29]} {[%emt
00:01:29]} 25. Nxd4 {[%clk 00:39:02]} {[%emt 00:00:35]} Nxd4 {[%clk 00:26:11]}
{[%emt 00:00:48]} 26. Rxd4 {[%clk 00:38:29]} {[%emt 00:01:03]} Qe5 {[%clk
00:25:19]} {[%emt 00:01:21]} 27. Rdd1 {[%clk 00:37:38]} {[%emt 00:01:18]} Bc6
{[%clk 00:22:13]} {[%emt 00:03:40]} 28. Bb1 {[%clk 00:33:29]} {[%emt 00:04:39]}
Qe6 {[%clk 00:19:09]} {[%emt 00:03:35]} 29. Kh2 {[%clk 00:30:38]} {[%emt
00:03:20]} Bd7 {[%clk 00:16:28]} {[%emt 00:03:12]} 30. Qf1 {[%clk 00:23:22]}
{[%emt 00:07:44]} Bc6 {[%clk 00:12:20]} {[%emt 00:04:39]} 31. f3 {[%clk
00:22:57]} {[%emt 00:00:55]} Qe5 {[%clk 00:11:47]} {[%emt 00:01:04]} 32. Qf2
{[%clk 00:22:18]} {[%emt 00:01:08]} Qe6 {[%clk 00:09:44]} {[%emt 00:02:30]} 33.
Rd4 {[%clk 00:19:33]} {[%emt 00:03:17]} Re8 {[%clk 00:09:09]} {[%emt 00:01:08]}
34. Red1 {[%clk 00:18:58]} {[%emt 00:01:04]} d5 {[%clk 00:08:30]} {[%emt
00:01:09]} 35. exd5 {[%clk 00:17:20]} {[%emt 00:02:07]} Nxd5 {[%clk 00:08:44]}
{[%emt 00:00:17]} 36. Be4 {[%clk 00:14:27]} {[%emt 00:03:22]} Rad8 {[%clk
00:05:42]} {[%emt 00:03:33]} 37. Qd2 {[%clk 00:13:49]} {[%emt 00:01:07]} Bd7
{[%clk 00:01:44]} {[%emt 00:04:29]} 38. Rxd5 {[%clk 00:10:01]} {[%emt
00:04:17]} Qxh3 {[%clk 00:01:55]} {[%emt 00:00:19]} 39. Kg1 {[%clk 00:10:01]}
{[%emt 00:00:29]} Qxg3+ {[%clk 00:02:17]} {[%emt 00:00:09]} 40. Qg2 {[%clk
00:10:04]} {[%emt 00:00:26]} Qc7 {[%clk 00:01:36]} {[%emt 00:01:09]} 41. Kh1
{[%clk 00:08:12]} {[%emt 00:02:25]} Be6 {[%clk 00:01:20]} {[%emt 00:00:47]} 42.
Rxd8 {[%clk 00:07:54]} {[%emt 00:00:47]} Rxd8 {[%clk 00:01:48]} {[%emt
00:00:03]} 43. Rxd8+ {[%clk 00:07:37]} {[%emt 00:00:46]} Qxd8 {[%clk 00:02:16]}
{[%emt 00:00:03]} 44. Be3 {[%clk 00:02:33]} {[%emt 00:05:33]} Qh4 {[%clk
00:02:10]} {[%emt 00:00:34]} 45. Qh2 {[%clk 00:01:24]} {[%emt 00:01:41]} Qxh2
{[%clk 00:02:16]} {[%emt 00:00:24]} 46. Kxh2 {[%clk 00:01:44]} {[%emt
00:00:09]} Bxa2 {[%clk 00:02:45]} {[%emt 00:00:03]} 47. Bc6 {[%clk 00:01:50]}
{[%emt 00:00:23]} Bc4 {[%clk 00:02:08]} {[%emt 00:01:08]} 48. Kg3 {[%clk
00:02:08]} {[%emt 00:00:11]} g6 {[%emt 00:02:16]} 1/2-1/2

[Event "NJSK 2018 Meisjes C"]
[Site "Assen, Netherlands"]
[Date "2018.04.30"]
[Round "2.1"]
[White "Huang, Wendy"]
[Black "Basa, Manasvita"]
[Result "1/2-1/2"]
[TimeControl "40/90m+30m+30sec/move"]
[WhiteElo "1572"]
[BlackElo "1402"]

1. e4 {[%clk 01:30:58]} {[%emt 00:00:03]} e5 {[%clk 01:30:56]} {[%emt
00:00:04]} 2. Nf3 {[%clk 01:31:22]} {[%emt 00:00:05]} Nc6 {[%clk 01:31:20]}
{[%emt 00:00:06]} 3. Bc4 {[%clk 01:31:45]} {[%emt 00:00:08]} Bc5 {[%clk
01:31:44]} {[%emt 00:00:06]} 4. Nc3 {[%clk 01:32:07]} {[%emt 00:00:08]} Nf6
{[%clk 01:31:31]} {[%emt 00:00:43]} 5. d3 {[%clk 01:32:25]} {[%emt 00:00:11]}
h6 {[%clk 01:31:22]} {[%emt 00:00:40]} 6. Be3 {[%clk 01:32:32]} {[%emt
00:00:23]} Bb6 {[%clk 01:31:37]} {[%emt 00:00:15]} 7. O-O {[%clk 01:32:13]}
{[%emt 00:00:48]} d6 {[%clk 01:30:45]} {[%emt 00:01:22]} 8. h3 {[%clk
01:32:10]} {[%emt 00:00:33]} Be6 {[%clk 01:30:56]} {[%emt 00:00:19]} 9. Nd5
{[%clk 01:31:09]} {[%emt 00:01:31]} O-O {[%clk 01:30:44]} {[%emt 00:00:43]} 10.
Bxb6 {[%clk 01:24:22]} {[%emt 00:07:17]} axb6 {[%clk 01:30:47]} {[%emt
00:00:27]} 11. a3 {[%clk 01:21:58]} {[%emt 00:02:54]} Bxd5 {[%clk 01:27:35]}
{[%emt 00:03:41]} 12. Bxd5 {[%clk 01:22:08]} {[%emt 00:00:20]} Nxd5 {[%clk
01:27:58]} {[%emt 00:00:08]} 13. exd5 {[%clk 01:22:31]} {[%emt 00:00:07]} Ne7
{[%clk 01:28:21]} {[%emt 00:00:07]} 14. c4 {[%clk 01:22:46]} {[%emt 00:00:14]}
f5 {[%clk 01:27:34]} {[%emt 00:01:17]} 15. Re1 {[%clk 01:20:10]} {[%emt
00:03:06]} Ng6 {[%clk 01:27:22]} {[%emt 00:00:42]} 16. Qd2 {[%clk 01:12:31]}
{[%emt 00:08:09]} Nf4 {[%clk 01:26:18]} {[%emt 00:01:34]} 17. d4 {[%clk
01:11:36]} {[%emt 00:01:25]} Re8 {[%clk 01:07:40]} {[%emt 00:19:09]} 18. Kh2
{[%clk 01:00:20]} {[%emt 00:11:46]} Ng6 {[%clk 01:07:45]} {[%emt 00:00:24]} 19.
dxe5 {[%clk 00:52:34]} {[%emt 00:08:16]} dxe5 {[%clk 01:06:35]} {[%emt
00:01:41]} 20. g3 {[%clk 00:46:38]} {[%emt 00:06:25]} Qf6 {[%clk 01:05:56]}
{[%emt 00:01:08]} 21. Kg2 {[%clk 00:42:38]} {[%emt 00:04:30]} f4 {[%clk
01:03:02]} {[%emt 00:03:25]} 22. Qc2 {[%clk 00:39:12]} {[%emt 00:03:56]} Rf8
{[%clk 00:48:15]} {[%emt 00:15:18]} 23. Qe4 {[%clk 00:37:14]} {[%emt 00:02:27]}
Rae8 {[%clk 00:47:57]} {[%emt 00:00:49]} 24. Rad1 {[%clk 00:35:59]} {[%emt
00:01:44]} fxg3 {[%clk 00:42:31]} {[%emt 00:05:56]} 25. fxg3 {[%clk 00:36:00]}
{[%emt 00:00:29]} h5 {[%clk 00:41:49]} {[%emt 00:01:12]} 26. Rf1 {[%clk
00:34:56]} {[%emt 00:01:33]} 1/2-1/2

[Event "NJSK 2018 Meisjes C"]
[Site "Assen, Netherlands"]
[Date "2018.04.30"]
[Round "2.2"]
[White "Martinez, Sara"]
[Black "De Zoeten, Cato"]
[Result "0-1"]
[TimeControl "40/90m+30m+30sec/move"]
[WhiteElo "1446"]
[BlackElo "1496"]

1. e4 {[%clk 01:30:58]} {[%emt 00:00:02]} c5 {[%clk 01:30:54]} {[%emt
00:00:06]} 2. Nf3 {[%clk 01:31:24]} {[%emt 00:00:04]} g6 {[%clk 01:31:20]}
{[%emt 00:00:04]} 3. d4 {[%clk 01:31:48]} {[%emt 00:00:05]} cxd4 {[%clk
01:31:46]} {[%emt 00:00:04]} 4. Qxd4 {[%clk 01:32:10]} {[%emt 00:00:09]} Nf6
{[%clk 01:32:02]} {[%emt 00:00:14]} 5. Nc3 {[%clk 01:32:16]} {[%emt 00:00:24]}
Nc6 {[%clk 01:31:04]} {[%emt 00:01:28]} 6. Qa4 {[%clk 01:31:58]} {[%emt
00:00:47]} Bg7 {[%clk 01:28:10]} {[%emt 00:03:26]} 7. e5 {[%clk 01:31:14]}
{[%emt 00:01:14]} Ng8 {[%clk 01:26:26]} {[%emt 00:02:14]} 8. Bf4 {[%clk
01:30:14]} {[%emt 00:01:30]} Qb6 {[%clk 01:14:07]} {[%emt 00:12:49]} 9. O-O-O
{[%clk 01:21:56]} {[%emt 00:08:47]} Nh6 {[%clk 01:07:24]} {[%emt 00:07:13]} 10.
Nd5 {[%clk 01:21:43]} {[%emt 00:00:44]} Qd8 {[%clk 01:05:51]} {[%emt 00:02:02]}
11. Bc4 {[%clk 01:15:45]} {[%emt 00:06:28]} O-O {[%clk 00:57:51]} {[%emt
00:08:30]} 12. h3 {[%clk 01:12:26]} {[%emt 00:03:50]} a6 {[%clk 00:46:23]}
{[%emt 00:11:58]} 13. Qa3 {[%clk 01:07:29]} {[%emt 00:05:27]} e6 {[%clk
00:34:51]} {[%emt 00:12:02]} 14. Bg5 {[%clk 01:00:16]} {[%emt 00:07:43]} Qa5
{[%clk 00:31:00]} {[%emt 00:04:21]} 15. Qxa5 {[%clk 00:53:35]} {[%emt
00:07:11]} Nxa5 {[%clk 00:31:14]} {[%emt 00:00:16]} 16. Nb6 {[%clk 00:53:52]}
{[%emt 00:00:12]} Nxc4 {[%clk 00:28:29]} {[%emt 00:03:15]} 17. Nxa8 {[%clk
00:53:54]} {[%emt 00:00:29]} b5 {[%clk 00:27:29]} {[%emt 00:01:30]} 18. Nc7
{[%clk 00:53:35]} {[%emt 00:00:48]} Bb7 {[%clk 00:23:02]} {[%emt 00:04:57]} 19.
Rhe1 {[%clk 00:38:27]} {[%emt 00:15:37]} Nf5 {[%clk 00:15:16]} {[%emt
00:08:18]} 20. Bf4 {[%clk 00:26:38]} {[%emt 00:12:18]} Rc8 {[%clk 00:13:50]}
{[%emt 00:01:56]} 21. Rxd7 {[%clk 00:22:58]} {[%emt 00:04:10]} Bc6 {[%clk
00:13:51]} {[%emt 00:00:29]} 22. Red1 {[%clk 00:23:08]} {[%emt 00:00:20]} Bxd7
{[%clk 00:13:42]} {[%emt 00:00:39]} 23. Rxd7 {[%clk 00:23:34]} {[%emt
00:00:05]} Nb6 {[%clk 00:13:47]} {[%emt 00:00:25]} 24. Rd6 {[%clk 00:22:08]}
{[%emt 00:01:56]} Nxd6 {[%clk 00:13:34]} {[%emt 00:00:43]} 25. exd6 {[%clk
00:22:31]} {[%emt 00:00:06]} Rd8 {[%clk 00:11:45]} {[%emt 00:02:19]} 26. Nd2
{[%clk 00:16:38]} {[%emt 00:06:23]} e5 {[%clk 00:10:36]} {[%emt 00:01:39]} 27.
Bg5 {[%clk 00:16:09]} {[%emt 00:00:59]} Rxd6 {[%clk 00:09:22]} {[%emt
00:01:45]} 28. Nxa6 {[%clk 00:15:31]} {[%emt 00:01:08]} f6 {[%clk 00:08:28]}
{[%emt 00:01:24]} 29. Be3 {[%clk 00:15:54]} {[%emt 00:00:07]} Nd5 {[%clk
00:08:33]} {[%emt 00:00:25]} 30. Nc5 {[%clk 00:15:42]} {[%emt 00:00:41]} Nxe3
{[%clk 00:08:48]} {[%emt 00:00:15]} 31. fxe3 {[%clk 00:16:04]} {[%emt
00:00:08]} Bh6 {[%clk 00:08:58]} {[%emt 00:00:20]} 32. Nf1 {[%clk 00:16:03]}
{[%emt 00:00:31]} f5 {[%clk 00:09:09]} {[%emt 00:00:19]} 33. Nd3 {[%clk
00:15:45]} {[%emt 00:00:49]} f4 {[%clk 00:08:33]} {[%emt 00:01:06]} 34. exf4
{[%clk 00:14:20]} {[%emt 00:01:55]} exf4 {[%clk 00:08:45]} {[%emt 00:00:17]} 35.
Kd1 {[%clk 00:13:52]} {[%emt 00:00:58]} Kf7 {[%clk 00:08:29]} {[%emt 00:00:47]}
36. Ke2 {[%clk 00:14:02]} {[%emt 00:00:19]} Re6+ {[%clk 00:07:57]} {[%emt
00:01:02]} 37. Kf3 {[%clk 00:14:22]} {[%emt 00:00:10]} Kf6 {[%clk 00:07:46]}
{[%emt 00:00:42]} 38. Nd2 {[%clk 00:13:06]} {[%emt 00:01:46]} Re3+ {[%clk
00:07:26]} {[%emt 00:00:49]} 39. Kf2 {[%clk 00:13:18]} {[%emt 00:00:17]} Ke6
{[%clk 00:05:16]} {[%emt 00:02:41]} 40. Nb3 {[%clk 00:10:44]} {[%emt 00:03:05]}
Kd5 {[%clk 00:02:42]} {[%emt 00:03:04]} 41. Nd2 {[%clk 00:10:36]} {[%emt
00:00:38]} g5 {[%clk 00:02:12]} {[%emt 00:01:00]} 42. Nb4+ {[%clk 00:06:24]}
{[%emt 00:04:42]} Kc5 {[%clk 00:00:38]} {[%emt 00:01:36]} 43. Nd3+ {[%clk
00:05:42]} {[%emt 00:01:39]} Kd5 {[%clk 00:30:10]} {[%emt 00:00:56]} 44. Nb4+
{[%clk 00:36:00]} {[%emt 00:00:14]} Kd4 {[%clk 00:29:12]} {[%emt 00:01:27]} 45.
Nd3 {[%clk 00:35:30]} {[%emt 00:01:01]} Re7 {[%clk 00:25:04]} {[%emt 00:04:37]}
46. Nb4 {[%clk 00:34:11]} {[%emt 00:01:50]} Rc7 {[%clk 00:24:43]} {[%emt
00:00:51]} 47. c3+ {[%clk 00:33:43]} {[%emt 00:00:58]} Ke5 {[%clk 00:24:06]}
{[%emt 00:01:07]} 48. Nf3+ {[%clk 00:33:27]} {[%emt 00:00:46]} Ke4 {[%clk
00:23:09]} {[%emt 00:01:24]} 49. Nd2+ {[%clk 00:33:42]} {[%emt 00:00:18]} Kf5
{[%clk 00:23:20]} {[%emt 00:00:17]} 50. Nf3 {[%clk 00:33:58]} {[%emt 00:00:16]}
Bf8 {[%clk 00:22:16]} {[%emt 00:01:34]} 51. Nc2 {[%clk 00:32:40]} {[%emt
00:01:48]} Kf6 {[%clk 00:21:19]} {[%emt 00:01:25]} 52. Nd2 {[%clk 00:29:39]}
{[%emt 00:03:32]} Rd7 {[%clk 00:20:04]} {[%emt 00:01:46]} 53. Nd4 {[%clk
00:28:55]} {[%emt 00:01:14]} b4 {[%clk 00:17:58]} {[%emt 00:02:36]} 54. Ne4+
{[%clk 00:28:43]} {[%emt 00:00:41]} Kg6 {[%clk 00:17:19]} {[%emt 00:01:01]} 55.
Nf3 {[%clk 00:27:04]} {[%emt 00:02:19]} bxc3 {[%clk 00:15:36]} {[%emt
00:02:13]} 56. bxc3 {[%clk 00:26:49]} {[%emt 00:00:45]} Re7 {[%clk 00:14:41]}
{[%emt 00:01:24]} 57. Ned2 {[%clk 00:22:41]} {[%emt 00:04:38]} Ra7 {[%clk
00:13:34]} {[%emt 00:01:37]} 58. Ke2 {[%clk 00:21:46]} {[%emt 00:01:25]} Rxa2
{[%clk 00:12:24]} {[%emt 00:01:40]} 59. Kd3 {[%clk 00:21:59]} {[%emt 00:00:18]}
h5 {[%clk 00:12:09]} {[%emt 00:00:44]} 60. Ke4 {[%clk 00:22:10]} {[%emt
00:00:19]} Bg7 {[%clk 00:11:16]} {[%emt 00:01:23]} 61. c4 {[%clk 00:20:58]}
{[%emt 00:01:42]} g4 {[%clk 00:11:16]} {[%emt 00:00:30]} 62. Nh4+ {[%clk
00:19:38]} {[%emt 00:01:50]} Kg5 {[%clk 00:09:36]} {[%emt 00:02:10]} 63. Nf5
{[%clk 00:19:56]} {[%emt 00:00:12]} Rxd2 {[%clk 00:09:30]} {[%emt 00:00:36]} 64.
Nxg7 {[%clk 00:20:19]} {[%emt 00:00:07]} Re2+ {[%clk 00:09:34]} {[%emt
00:00:26]} 65. Kd5 {[%clk 00:20:33]} {[%emt 00:00:14]} Rxg2 {[%clk 00:09:37]}
{[%emt 00:00:29]} 66. Ne6 {[%clk 00:20:50]} {[%emt 00:00:13]} Kf5 {[%clk
00:09:34]} {[%emt 00:00:28]} 67. Nd4 {[%clk 00:21:09]} {[%emt 00:00:16]} Kf6
{[%clk 00:09:15]} {[%emt 00:00:46]} 68. hxg4 {[%clk 00:21:12]} {[%emt
00:00:30]} hxg4 {[%clk 00:09:32]} {[%emt 00:00:12]} 69. c5 {[%clk 00:21:36]}
{[%emt 00:00:07]} Rd2 {[%clk 00:08:57]} {[%emt 00:01:01]} 70. c6 {[%clk
00:21:48]} {[%emt 00:00:22]} Rxd4+ {[%clk 00:09:05]} {[%emt 00:00:22]} 71. Kxd4
{[%clk 00:22:13]} {[%emt 00:00:06]} Ke7 {[%clk 00:09:23]} {[%emt 00:00:11]} 72.
Ke4 {[%clk 00:22:05]} {[%emt 00:00:38]} f3 {[%clk 00:09:44]} {[%emt 00:00:09]}
73. Ke3 {[%clk 00:22:09]} {[%emt 00:00:26]} Kd6 {[%clk 00:10:09]} {[%emt
00:00:05]} 0-1

[Event "NJSK 2018 Meisjes C"]
[Site "Assen, Netherlands"]
[Date "2018.04.30"]
[Round "2.3"]
[White "Hatzmann, Mirthe"]
[Black "Honkoop, Stella"]
[Result "1/2-1/2"]
[TimeControl "40/90m+30m+30sec/move"]
[WhiteElo "1323"]
[BlackElo "1583"]

1. e4 {[%clk 01:30:59]} d6 {[%clk 01:30:52]} {[%emt 00:00:08]} 2. d4 {[%emt
00:00:17]} Nf6 {[%clk 01:31:10]} 3. Nc3 {[%clk 01:31:43]} {[%emt 00:00:11]}
Nbd7 {[%clk 01:31:29]} {[%emt 00:00:12]} 4. Bc4 {[%clk 01:31:50]} {[%emt
00:00:22]} e5 {[%clk 01:31:07]} {[%emt 00:00:52]} 5. Nf3 {[%clk 01:31:39]}
{[%emt 00:00:41]} Be7 {[%clk 01:29:49]} {[%emt 00:01:49]} 6. O-O {[%clk
01:30:47]} {[%emt 00:01:21]} c6 {[%clk 01:30:13]} {[%emt 00:00:07]} 7. a4
{[%clk 01:30:42]} {[%emt 00:00:35]} a5 {[%clk 01:29:13]} {[%emt 00:01:30]} 8.
Re1 {[%clk 01:29:48]} {[%emt 00:01:23]} Qc7 {[%clk 01:28:31]} {[%emt 00:01:13]}
9. Qe2 {[%clk 01:27:14]} {[%emt 00:03:03]} O-O {[%clk 01:27:04]} {[%emt
00:01:58]} 10. h3 {[%clk 01:25:47]} {[%emt 00:01:56]} h6 {[%clk 01:20:12]}
{[%emt 00:07:22]} 11. Be3 {[%clk 01:22:10]} {[%emt 00:04:06]} Re8 {[%clk
01:20:24]} {[%emt 00:00:20]} 12. Rad1 {[%clk 01:18:03]} {[%emt 00:04:37]} Nf8
{[%clk 01:16:36]} {[%emt 00:04:18]} 13. d5 {[%clk 00:56:39]} {[%emt 00:21:54]}
Ng6 {[%clk 01:11:08]} {[%emt 00:05:58]} 14. Bb3 {[%clk 00:48:30]} {[%emt
00:08:38]} Bd7 {[%clk 00:59:07]} {[%emt 00:12:31]} 15. Qc4 {[%clk 00:44:56]}
{[%emt 00:04:04]} Rf8 {[%clk 00:55:07]} {[%emt 00:04:30]} 16. Nb5 {[%clk
00:38:31]} {[%emt 00:06:55]} Qb8 {[%clk 00:52:19]} {[%emt 00:03:18]} 17. Nc3
{[%clk 00:35:48]} {[%emt 00:03:13]} Qc8 {[%clk 00:40:15]} {[%emt 00:12:35]} 18.
Qd3 {[%clk 00:29:55]} {[%emt 00:06:22]} 1/2-1/2

[Event "NJSK 2018 Meisjes C"]
[Site "Assen, Netherlands"]
[Date "2018.04.30"]
[Round "2.4"]
[White "Bogouslavskii, Veronique"]
[Black "Cordes, Jule"]
[Result "1/2-1/2"]
[TimeControl "40/90m+30m+30sec/move"]
[WhiteElo "1004"]
[BlackElo "1551"]

1. d4 {[%clk 01:30:57]} {[%emt 00:00:02]} d5 {[%clk 01:30:52]} {[%emt
00:00:08]} 2. c4 {[%clk 01:31:22]} {[%emt 00:00:05]} c6 {[%clk 01:31:17]}
{[%emt 00:00:05]} 3. Nc3 {[%clk 01:31:41]} {[%emt 00:00:12]} Nf6 {[%clk
01:31:39]} {[%emt 00:00:07]} 4. Nf3 {[%clk 01:32:06]} {[%emt 00:00:05]} e6
{[%clk 01:32:00]} {[%emt 00:00:09]} 5. e3 {[%clk 01:32:06]} {[%emt 00:00:31]}
Be7 {[%clk 01:32:19]} {[%emt 00:00:09]} 6. Qc2 {[%clk 01:32:07]} {[%emt
00:00:30]} O-O {[%clk 01:32:36]} {[%emt 00:00:13]} 7. Bd3 {[%clk 01:32:10]}
{[%emt 00:00:28]} dxc4 {[%clk 01:32:36]} {[%emt 00:00:29]} 8. Bxc4 {[%clk
01:32:37]} {[%emt 00:00:03]} b5 {[%clk 01:32:52]} {[%emt 00:00:15]} 9. Bd3
{[%clk 01:32:40]} {[%emt 00:00:26]} a6 {[%clk 01:33:15]} {[%emt 00:00:08]} 10.
O-O {[%clk 01:32:22]} {[%emt 00:00:48]} h6 {[%clk 01:31:37]} {[%emt 00:02:08]}
11. Re1 {[%clk 01:30:27]} {[%emt 00:02:24]} Qb6 {[%clk 01:28:57]} {[%emt
00:03:10]} 12. a4 {[%clk 01:19:32]} {[%emt 00:11:26]} Bb7 {[%clk 01:22:07]}
{[%emt 00:07:19]} 13. b3 {[%clk 01:05:58]} {[%emt 00:14:04]} Nbd7 {[%clk
01:16:53]} {[%emt 00:05:44]} 14. Bb2 {[%clk 01:02:57]} {[%emt 00:03:32]} Bb4
{[%clk 01:08:01]} {[%emt 00:09:21]} 15. Red1 {[%clk 01:02:35]} {[%emt
00:00:52]} Rfd8 {[%clk 01:03:58]} {[%emt 00:04:32]} 16. Rac1 {[%clk 00:53:23]}
{[%emt 00:09:43]} Rac8 {[%clk 01:03:16]} {[%emt 00:01:12]} 17. Qe2 {[%clk
00:50:38]} {[%emt 00:03:14]} Bxc3 {[%clk 00:50:06]} {[%emt 00:13:41]} 18. Bxc3
{[%clk 00:49:50]} {[%emt 00:01:18]} Nd5 {[%clk 00:48:29]} {[%emt 00:02:06]} 19.
Bd2 {[%clk 00:46:55]} {[%emt 00:03:27]} Nc7 {[%clk 00:43:28]} {[%emt 00:05:31]}
20. a5 {[%clk 00:45:53]} {[%emt 00:01:32]} Qa7 {[%clk 00:39:34]} {[%emt
00:04:19]} 21. b4 {[%clk 00:45:11]} {[%emt 00:01:16]} Qb8 {[%clk 00:36:31]}
{[%emt 00:03:33]} 22. e4 {[%clk 00:41:31]} {[%emt 00:04:10]} Ne8 {[%clk
00:34:26]} {[%emt 00:02:35]} 23. e5 {[%clk 00:41:05]} {[%emt 00:00:56]} Nf8
{[%clk 00:34:04]} {[%emt 00:00:52]} 24. Nh4 {[%clk 00:40:54]} {[%emt 00:00:41]}
Rxd4 {[%clk 00:32:37]} {[%emt 00:01:57]} 25. Nf3 {[%clk 00:34:22]} {[%emt
00:07:02]} Rd7 {[%clk 00:32:01]} {[%emt 00:01:00]} 26. Nh4 {[%clk 00:34:09]}
{[%emt 00:00:49]} Rcd8 {[%clk 00:26:51]} {[%emt 00:05:40]} 27. Bc3 {[%clk
00:26:52]} {[%emt 00:07:47]} Qc7 {[%clk 00:23:02]} {[%emt 00:04:17]} 28. Nf3
{[%clk 00:26:21]} {[%emt 00:01:02]} Rd5 {[%clk 00:16:53]} {[%emt 00:06:29]} 29.
Bd4 {[%clk 00:20:07]} {[%emt 00:06:55]} Qb8 {[%clk 00:10:31]} {[%emt 00:06:52]}
30. Be4 {[%clk 00:08:56]} {[%emt 00:11:41]} R5d7 {[%clk 00:10:35]} {[%emt
00:00:25]} 31. Bxc6 {[%clk 00:08:42]} {[%emt 00:00:44]} Bxc6 {[%clk 00:10:57]}
{[%emt 00:00:08]} 32. Rxc6 {[%clk 00:09:00]} {[%emt 00:00:12]} Qb7 {[%clk
00:10:34]} {[%emt 00:00:46]} 33. Qc2 {[%clk 00:06:17]} {[%emt 00:03:21]}
1/2-1/2